bitfinex/quotes_SOLUSD_20220128
["timestamp","ask_amount","ask_price","bid_price","bid_amount"]
[1643401620645,34.85929084,91.354,91.26,16.433]
[1643401620646,1.50252592,91.353,91.27,21.76]
[1643401620896,34.85929084,91.354,91.271,45.8498]
[1643401621056,34.85929084,91.354,91.281,6.0]
[1643401621345,1.50252592,91.373,91.282,109.25]
[1643401621575,6.0,91.363,91.292,6.0]
[1643401621747,6.0,91.363,91.3,15.76]
[1643401622145,43.03913059,91.383,91.31,6.0]
[1643401622352,1.50252592,91.387,91.311,0.25]
[1643401622603,1.50252592,91.39,91.313,6.0]
[1643401622746,1.50252592,91.392,91.313,6.0]
[1643401622957,1.50252592,91.397,91.32,6.0]
[1643401623256,1.50252592,91.399,91.33,15.76]
[1643401623447,34.93531433,91.398,91.33,15.76]
[1643401623729,35.18531433,91.398,91.34,6.0]
[1643401623849,35.18531433,91.398,91.341,0.25]
[1643401624067,35.18531433,91.398,91.34,6.0]
[1643401624247,1.50252592,91.391,91.34,6.0]
[1643401624452,1.50252592,91.384,91.307,6.0]
[1643401624649,35.3427419,91.383,91.29,15.76]
[1643401624849,6.0,91.373,91.291,0.25]
[1643401625187,16.437,91.37,91.291,0.25]
[1643401625348,47.62219611,91.369,91.291,0.25]
[1643401626050,47.62219611,91.369,91.3,6.0]
[1643401626259,16.435,91.36,91.3,6.0]
[1643401626553,47.62219611,91.369,91.235,1.50981917]
[1643401626554,6.0,91.359,91.235,1.50981917]
[1643401626756,9.20669142,91.359,91.235,1.50981917]
[1643401627055,1.50252592,91.356,91.23,15.76]
[1643401627258,42.92880623,91.355,91.23,15.76]
[1643401627452,45.88549765,91.355,91.23,15.76]
[1643401627653,1.50252592,91.35,91.23,15.76]
[1643401627858,1.50252592,91.348,91.231,0.25]
[1643401628094,47.22882213,91.329,91.231,0.25]
[1643401628253,0.25,91.328,91.231,0.25]
[1643401628960,16.447,91.3,91.23,15.76]
[1643401629227,37.75991639,91.299,91.23,15.76]
[1643401629354,38.00991639,91.299,91.23,15.76]
[1643401629954,38.00991639,91.299,91.21,1.50981917]
[1643401630157,16.448,91.29,91.201,1.50981917]
[1643401630368,0.25,91.289,91.183,1.50981917]
[1643401630565,0.25,91.289,91.193,6.0]
[1643401631156,16.458,91.26,91.193,6.0]
[1643401631383,44.97150489,91.259,91.186,6.0]
[1643401631557,44.97150489,91.259,91.152,73.56489142]
[1643401631558,0.25,91.289,91.194,2.95669142]
[1643401631954,0.25,91.289,91.19,15.76]
[1643401632155,0.25,91.289,91.191,0.25]
[1643401632359,16.449,91.28,91.191,0.25]
[1643401632566,47.55955556,91.279,91.191,0.25]
[1643401632770,47.80955556,91.279,91.191,0.25]
[1643401632962,47.80955556,91.279,91.19,15.76]
[1643401633380,47.80955556,91.279,91.174,1.50981917]
[1643401633639,16.451,91.27,91.165,1.50981917]
[1643401633764,0.25,91.269,91.165,1.50981917]
[1643401634368,2.95669142,91.268,91.163,1.50981917]
[1643401634579,2.95669142,91.268,91.152,24.5351]
[1643401634774,16.459,91.24,91.152,24.5351]
[1643401634967,37.39700553,91.239,91.152,24.5351]
[1643401635173,37.64700553,91.239,91.152,26.04491917]
[1643401635368,37.64700553,91.239,91.152,24.5351]
[1643401636175,16.459,91.22,91.152,24.5351]
[1643401636369,40.50341743,91.219,91.152,24.5351]
[1643401636577,40.50341743,91.219,91.153,0.25]
[1643401637468,6.0,91.209,91.137,1.50981917]
[1643401637672,6.0,91.209,91.07,54.92239797]
[1643401637673,6.0,91.209,91.13,1.50981917]
[1643401637928,0.25,91.208,91.122,1.50981917]
[1643401638068,0.25,91.208,91.111,1.50981917]
[1643401638272,0.25,91.208,91.11,1.50981917]
[1643401638470,0.25,91.208,91.108,1.50981917]
[1643401638694,16.463,91.2,91.106,1.50981917]
[1643401638880,40.27766968,91.199,91.1,1.50981917]
[1643401639073,40.27766968,91.199,91.098,1.50981917]
[1643401639568,40.27766968,91.199,91.094,24.5576]
[1643401639778,16.473,91.18,91.094,24.5576]
[1643401640071,40.27766968,91.199,91.095,0.25]
[1643401640072,48.2339682,91.179,91.095,0.25]
[1643401640489,0.25,91.178,91.095,0.25]
[1643401640703,0.25,91.178,91.094,24.5576]
[1643401640896,42.19649823,91.159,91.094,24.5576]
[1643401641295,0.25,91.158,91.094,24.5576]
[1643401641595,0.25,91.158,91.081,23.1617]
[1643401641802,0.25,91.158,91.091,6.0]
[1643401641992,16.474,91.14,91.091,6.0]
[1643401642195,0.25,91.158,91.092,0.25]
[1643401642421,0.25,91.158,91.091,6.0]
[1643401642708,6.0,91.149,91.083,6.0]
[1643401642906,0.25,91.148,91.083,6.0]
[1643401643094,0.25,91.148,91.07,6.04339797]
[1643401643722,16.474,91.14,91.07,6.04339797]
[1643401643897,49.18866245,91.139,91.071,0.25]
[1643401645795,49.18866245,91.139,91.072,2.95669142]
[1643401646013,49.18866245,91.139,91.082,6.0]
[1643401646196,49.18866245,91.139,91.083,0.25]
[1643401648397,16.476,91.13,91.083,0.25]
[1643401648597,16.476,91.13,91.08,6.0]
[1643401648797,16.476,91.13,91.081,0.25]
[1643401650596,49.18866245,91.139,91.081,0.25]
[1643401651297,49.18866245,91.139,91.08,6.0]
[1643401651498,49.18866245,91.139,91.081,0.25]
[1643401653203,16.474,91.14,91.081,0.25]
[1643401653405,54.917,91.16,91.082,2.95669142]
[1643401653704,54.917,91.16,91.092,6.0]
[1643401653905,54.902,91.18,91.093,0.25]
[1643401654308,45.57380435,91.18,91.094,2.95669142]
[1643401654706,45.57380435,91.18,91.095,0.25]
[1643401654904,6.0,91.17,91.095,0.25]
[1643401655108,45.57380435,91.18,91.104,6.0]
[1643401655305,100.659,91.22,91.11,13.18]
[1643401655606,16.4636,91.227,91.12,6.0]
[1643401655607,16.464,91.2,91.12,6.0]
[1643401655830,16.464,91.2,91.13,13.18]
[1643401656227,16.464,91.2,91.131,0.25]
[1643401656404,47.90412709,91.199,91.131,3.20669142]
[1643401656640,16.465,91.19,91.12,6.0]
[1643401656805,6.0,91.18,91.09,13.18]
[1643401657011,48.1859901,91.179,91.09,13.18]
[1643401657205,48.4359901,91.179,91.09,13.18]
[1643401658009,16.471,91.16,91.09,13.18]
[1643401658208,35.64847952,91.159,91.09,13.18]
[1643401658528,13.18,91.23,91.095,3.20669142]
[1643401658840,2.95669142,91.245,91.109,1.50981917]
[1643401659007,2.95669142,91.245,91.12,13.18]
[1643401659207,19.47129142,91.245,91.13,13.18]
[1643401659421,16.46,91.22,91.131,23.6061]
[1643401659611,46.54685669,91.219,91.141,6.0]
[1643401659807,46.79685669,91.219,91.141,6.0]
[1643401660015,46.79685669,91.219,91.12,13.18]
[1643401660309,46.79685669,91.219,91.121,0.25]
[1643401660619,46.79685669,91.219,91.13,6.0]
[1643401660807,46.79685669,91.219,91.131,0.25]
[1643401661009,16.466,91.2,91.131,0.25]
[1643401661209,38.60704375,91.199,91.131,0.25]
[1643401661410,38.85704375,91.199,91.131,0.25]
[1643401662011,16.465,91.19,91.131,0.25]
[1643401662634,17.38774591,91.258,91.132,2.95669142]
[1643401662635,54.87,91.23,91.132,2.95669142]
[1643401662824,1.50252592,91.26,91.133,23.9066]
[1643401663020,24.4249,91.292,91.17,16.451]
[1643401663021,16.453,91.27,91.17,16.451]
[1643401663318,16.453,91.27,91.181,109.0]
[1643401663420,16.453,91.27,91.18,19.18]
[1643401663722,49.13971317,91.269,91.182,6.0]
[1643401664229,49.13971317,91.269,91.19,6.0]
[1643401664456,49.13971317,91.269,91.2,13.18]
[1643401665025,16.454,91.26,91.201,0.25]
[1643401665510,0.25,91.259,91.201,0.25]
[1643401665826,0.25,91.259,91.2,13.18]
[1643401666040,0.25,91.259,91.09,0.25]
[1643401666041,45.43994918,91.249,91.159,1.50981917]
[1643401666232,45.43994918,91.249,91.15,13.18]
[1643401666453,0.25,91.248,91.144,6.0]
[1643401666728,0.25,91.248,91.148,0.25]
[1643401666864,45.43994918,91.249,91.16,13.18]
[1643401667069,45.43994918,91.249,91.17,6.0]
[1643401667263,45.43994918,91.249,91.171,0.25]
[1643401667463,45.43994918,91.249,91.17,19.18]
[1643401668694,0.25,91.248,91.17,19.18]
[1643401672269,0.25,91.248,91.171,0.25]
[1643401673265,45.43994918,91.249,91.171,0.25]
[1643401673969,16.457,91.24,91.172,2.95669142]
[1643401674366,16.457,91.24,91.173,0.25]
[1643401676369,16.457,91.24,91.171,0.25]
[1643401678381,16.457,91.24,91.17,19.18]
[1643401679781,16.457,91.24,91.171,0.25]
[1643401680980,16.457,91.24,91.172,2.95669142]
[1643401681381,16.457,91.24,91.173,0.25]
[1643401681583,16.457,91.24,91.172,2.95669142]
[1643401681784,16.457,91.24,91.174,2.95669142]
[1643401681983,16.457,91.24,91.184,6.0]
[1643401682183,16.457,91.24,91.19,13.18]
[1643401682385,16.457,91.24,91.191,0.25]
[1643401682586,16.453,91.26,91.191,0.25]
[1643401682783,54.835,91.29,91.2,6.0]
[1643401682984,1.50252592,91.316,91.21,13.18]
[1643401683183,1.50252592,91.317,91.211,24.2807]
[1643401683383,1.50252592,91.317,91.22,6.0]
[1643401683585,16.449,91.28,91.23,13.18]
[1643401683786,36.07668961,91.279,91.231,0.25]
[1643401685412,16.446,91.3,91.231,0.25]
[1643401685809,0.25,91.299,91.231,0.25]
[1643401686409,43.28760058,91.299,91.231,0.25]
[1643401687815,43.28760058,91.299,91.23,13.18]
[1643401688011,16.447,91.29,91.23,13.18]
[1643401688211,16.447,91.29,91.2,6.0]
[1643401688414,6.0,91.28,91.2,6.0]
[1643401688813,0.25,91.279,91.2,6.0]
[1643401689215,48.48281874,91.259,91.19,13.18]
[1643401689414,48.48281874,91.259,91.191,0.25]
[1643401689614,0.25,91.258,91.191,0.25]
[1643401690318,48.48281874,91.259,91.191,0.25]
[1643401690515,48.48281874,91.259,91.192,2.95669142]
[1643401690915,48.48281874,91.259,91.193,0.25]
[1643401691316,48.48281874,91.259,91.194,2.95669142]
[1643401691720,48.48281874,91.259,91.195,0.25]
[1643401692118,1.50252592,91.292,91.196,2.95669142]
[1643401692319,0.25,91.288,91.2,13.18]
[1643401692719,0.25,91.288,91.201,0.25]
[1643401692925,16.451,91.27,91.201,0.25]
[1643401693121,40.79732347,91.269,91.201,0.25]
[1643401693321,41.04732347,91.269,91.201,0.25]
[1643401695022,16.454,91.25,91.201,0.25]
[1643401695827,41.04732347,91.269,91.201,0.25]
[1643401696629,16.451,91.27,91.201,0.25]
[1643401696826,16.8092,91.305,91.201,0.25]
[1643401696827,1.50252592,91.296,91.202,2.95669142]
[1643401697030,3.01087046,91.322,91.202,2.95669142]
[1643401697031,1.50252592,91.298,91.212,6.0]
[1643401697231,1.50252592,91.299,91.22,13.18]
[1643401697426,1.50252592,91.3,91.22,13.18]
[1643401697626,45.46541763,91.299,91.23,6.0]
[1643401697825,45.46541763,91.299,91.231,0.25]
[1643401698028,45.46541763,91.299,91.24,13.18]
[1643401698427,0.25,91.298,91.24,13.18]
[1643401698827,0.25,91.298,91.231,6.0]
[1643401699128,0.25,91.298,91.232,0.25]
[1643401700132,0.25,91.298,91.231,0.25]
[1643401700533,45.46541763,91.299,91.231,0.25]
[1643401701933,16.448,91.29,91.23,15.81]
[1643401702337,45.46541763,91.299,91.23,15.81]
[1643401702338,0.25,91.289,91.23,15.81]
[1643401702533,6.25,91.289,91.23,15.81]
[1643401702735,1.50252592,91.287,91.2,15.81]
[1643401702934,1.50252592,91.283,91.2,15.81]
[1643401703137,1.50252592,91.282,91.201,0.25]
[1643401703533,0.25,91.281,91.201,0.25]
[1643401704060,16.45,91.28,91.201,0.25]
[1643401704265,0.25,91.279,91.201,0.25]
[1643401704665,1.75252592,91.279,91.201,0.25]
[1643401704863,1.50252592,91.277,91.201,0.25]
[1643401705262,0.25,91.276,91.201,0.25]
[1643401705667,45.62374402,91.259,91.201,0.25]
[1643401705862,0.25,91.258,91.201,0.25]
[1643401707964,0.25,91.258,91.2,15.81]
[1643401708373,45.62374402,91.259,91.2,15.81]
[1643401708565,0.25,91.258,91.2,15.81]
[1643401709168,45.62374402,91.259,91.2,15.81]
[1643401709767,16.454,91.25,91.2,15.81]
[1643401709967,16.454,91.25,91.168,1.50981917]
[1643401710168,16.454,91.25,91.123,16.5743]
[1643401710169,3.20669142,91.249,91.16,15.81]
[1643401710367,1.50252592,91.246,91.15,15.81]
[1643401710775,0.25,91.245,91.15,15.81]
[1643401711374,0.25,91.245,91.151,0.25]
[1643401711770,0.25,91.253,91.151,24.4579]
[1643401712071,16.461,91.23,91.151,24.4579]
[1643401712271,40.36918238,91.229,91.151,24.4579]
[1643401713773,16.46,91.22,91.151,24.4579]
[1643401714174,0.25,91.219,91.151,24.4579]
[1643401716774,0.25,91.228,91.151,24.4579]
[1643401721477,16.46,91.22,91.151,24.4579]
[1643401721878,0.25,91.219,91.151,24.4579]
[1643401723880,16.46,91.22,91.151,24.4579]
[1643401724382,40.11918238,91.229,91.151,24.4579]
[1643401724681,56.35552592,91.26,91.152,111.95669142]
[1643401724982,6.0,91.25,91.162,6.0]
[1643401725184,6.0,91.25,91.17,15.81]
[1643401725381,1.50252592,91.283,91.171,0.25]
[1643401725582,6.0,91.272,91.18,6.0]
[1643401725780,6.0,91.272,91.19,15.81]
[1643401725984,16.453,91.27,91.19,15.81]
[1643401726184,16.453,91.27,91.191,0.25]
[1643401726583,19.40969142,91.27,91.191,0.25]
[1643401726785,19.40969142,91.27,91.191,3.20669142]
[1643401726984,16.453,91.27,91.191,112.20669142]
[1643401727181,16.453,91.27,91.191,3.20669142]
[1643401727386,16.453,91.27,91.191,2.95669142]
[1643401727584,19.40969142,91.27,91.17,15.81]
[1643401727783,16.453,91.27,91.171,0.25]
[1643401728385,0.25,91.269,91.171,0.25]
[1643401728585,16.456,91.24,91.171,0.25]
[1643401728789,39.26508137,91.239,91.171,0.25]
[1643401729186,39.26508137,91.239,91.17,15.81]
[1643401729888,16.458,91.23,91.17,15.81]
[1643401730387,0.25,91.229,91.17,15.81]
[1643401730589,6.0,91.22,91.17,15.81]
[1643401730892,0.25,91.219,91.17,15.81]
[1643401732088,16.461,91.22,91.17,15.81]
[1643401732290,0.25,91.219,91.17,15.81]
[1643401733290,16.461,91.22,91.171,0.25]
[1643401734193,16.461,91.22,91.17,15.81]
[1643401735393,0.25,91.219,91.17,15.81]
[1643401740627,1.50252592,91.236,91.171,0.25]
[1643401740826,1.50252592,91.243,91.171,3.20669142]
[1643401741027,1.50252592,91.249,91.181,6.0]
[1643401741227,1.50252592,91.25,91.19,15.81]
[1643401741431,1.50252592,91.252,91.19,15.81]
[1643401741630,40.3456074,91.251,91.191,0.25]
[1643401741829,0.25,91.25,91.191,0.25]
[1643401742029,1.50252592,91.254,91.192,2.95669142]
[1643401742229,1.50252592,91.254,91.2,6.0]
[1643401742431,1.50252592,91.273,91.21,15.81]
[1643401742631,53.17202805,91.338,91.22,15.81]
[1643401742632,1.50252592,91.275,91.22,15.81]
[1643401742933,38.94139152,91.275,91.221,0.25]
[1643401743731,40.44391744,91.275,91.221,0.25]
[1643401743932,38.94139152,91.275,91.221,0.25]
[1643401744936,1.50252592,91.286,91.221,0.25]
[1643401745133,1.50252592,91.288,91.221,0.25]
[1643401745337,0.25,91.285,91.221,0.25]
[1643401745634,1.50252592,91.289,91.23,6.0]
[1643401745835,1.50252592,91.29,91.24,15.81]
[1643401746233,1.50252592,91.291,91.241,0.25]
[1643401746534,1.50252592,91.292,91.241,0.25]
[1643401746839,0.25,91.291,91.241,0.25]
[1643401747435,0.25,91.292,91.241,0.25]
[1643401747835,0.25,91.294,91.241,0.25]
[1643401748035,0.25,91.294,91.24,15.81]
[1643401748036,0.25,91.295,91.24,15.81]
[1643401748236,0.25,91.295,91.241,0.25]
[1643401750437,1.50252592,91.302,91.242,2.95669142]
[1643401750638,1.50252592,91.312,91.242,2.95669142]
[1643401750843,1.50252592,91.312,91.24,15.81]
[1643401751037,11.43719984,91.301,91.21,15.81]
[1643401751236,1.50252592,91.288,91.2,15.81]
[1643401751438,43.96583872,91.287,91.201,23.4851]
[1643401751637,1.50252592,91.286,91.201,23.4851]
[1643401752043,16.451,91.28,91.202,0.25]
[1643401752238,0.25,91.279,91.202,0.25]
[1643401752638,0.25,91.279,91.211,6.0]
[1643401752837,0.25,91.279,91.22,15.81]
[1643401753240,0.25,91.279,91.221,0.25]
[1643401753440,43.96583872,91.287,91.221,0.25]
[1643401753843,16.448,91.28,91.221,0.25]
[1643401754044,16.448,91.28,91.201,23.4851]
[1643401754344,6.0,91.27,91.202,0.25]
[1643401754546,2.95669142,91.279,91.202,0.25]
[1643401754743,0.25,91.269,91.202,0.25]
[1643401754945,1.50252592,91.276,91.202,0.25]
[1643401755443,0.25,91.275,91.202,0.25]
[1643401755844,16.454,91.25,91.202,0.25]
[1643401756045,1.75252592,91.275,91.202,0.25]
[1643401756246,1.50252592,91.277,91.201,0.25]
[1643401756472,1.50252592,91.285,91.201,24.6746]
[1643401756645,1.50252592,91.289,91.201,24.6746]
[1643401756854,3.02099321,91.319,91.201,24.6746]
[1643401756855,16.449,91.28,91.201,24.6746]
[1643401757452,16.449,91.28,91.202,109.0]
[1643401757851,36.17058745,91.288,91.203,0.25]
[1643401758052,1.50252592,91.292,91.212,6.0]
[1643401758253,1.50252592,91.292,91.22,15.81]
[1643401758554,1.50252592,91.311,91.23,6.0]
[1643401758758,1.50252592,91.318,91.24,15.81]
[1643401759153,1.50252592,91.32,91.25,6.0]
[1643401759356,1.50252592,91.321,91.26,15.81]
[1643401759558,1.50252592,91.329,91.261,109.0]
[1643401759754,50.17316709,91.332,91.261,109.25]
[1643401760154,48.67064117,91.332,91.261,109.25]
[1643401760562,1.50252592,91.338,91.261,109.25]
[1643401760758,1.50252592,91.35,91.271,6.0]
[1643401760964,16.435,91.36,91.281,109.0]
[1643401761156,16.435,91.36,91.282,23.0202]
[1643401761356,16.435,91.36,91.282,132.2702]
[1643401761555,41.58667732,91.359,91.282,132.2702]
[1643401762261,0.25,91.358,91.282,132.2702]
[1643401762658,0.25,91.358,91.282,23.2702]
[1643401763760,0.25,91.358,91.292,6.0]
[1643401763979,0.25,91.358,91.3,15.81]
[1643401764387,0.25,91.358,91.301,0.25]
[1643401766181,1.50252592,91.373,91.301,0.25]
[1643401766586,395.2,91.63,91.301,0.25]
[1643401766587,1.50252592,91.384,91.311,109.0]
[1643401766784,1.50252592,91.39,91.32,15.81]
[1643401767088,1.50252592,91.393,91.33,6.0]
[1643401767283,1.50252592,91.393,91.34,15.81]
[1643401767284,45.87362574,91.392,91.34,15.81]
[1643401767486,1.50252592,91.389,91.34,15.81]
[1643401767684,45.87362574,91.392,91.341,0.25]
[1643401767984,1.50252592,91.389,91.34,15.81]
[1643401768184,0.25,91.391,91.34,15.81]
[1643401768986,16.429,91.39,91.34,15.81]
[1643401769383,0.25,91.389,91.34,15.81]
[1643401772298,0.25,91.391,91.341,0.25]
[1643401772498,45.87362574,91.392,91.341,0.25]
[1643401773895,0.25,91.391,91.341,0.25]
[1643401774498,0.25,91.391,91.341,109.25]
[1643401774706,1.50252592,91.404,91.341,0.25]
[1643401774901,1.50252592,91.408,91.341,0.25]
[1643401775101,1.50252592,91.408,91.35,6.0]
[1643401775300,6.0,91.398,91.351,0.25]
[1643401775503,1.50252592,91.409,91.351,6.25]
[1643401775701,43.59714483,91.408,91.351,6.25]
[1643401776101,0.25,91.407,91.351,6.25]
[1643401776902,0.25,91.407,91.35,15.81]
[1643401777103,1.75252592,91.407,91.333,23.1393]
[1643401777308,0.25,91.407,91.334,0.25]
[1643401778108,16.427,91.4,91.334,0.25]
[1643401778306,0.25,91.399,91.334,0.25]
[1643401779714,1.50252592,91.407,91.34,15.81]
[1643401779915,1.50252592,91.414,91.343,6.0]
[1643401780108,6.0,91.404,91.35,6.0]
[1643401780310,6.0,91.404,91.351,0.25]
[1643401780908,39.06536975,91.403,91.351,0.25]
[1643401782308,38.81536975,91.403,91.351,0.25]
[1643401782747,1.50252592,91.414,91.351,0.25]
[1643401782910,1.50252592,91.419,91.36,6.0]
[1643401783114,1.50252592,91.419,91.37,15.81]
[1643401783328,1.50252592,91.423,91.371,0.25]
[1643401783711,1.50252592,91.43,91.371,0.25]
[1643401783910,1.50252592,91.432,91.371,0.25]
[1643401784111,1.50252592,91.431,91.37,15.81]
[1643401784312,4.45921734,91.431,91.37,15.81]
[1643401784512,1.50252592,91.423,91.351,48.1393]
[1643401784711,1.50252592,91.419,91.351,48.1393]
[1643401784911,1.50252592,91.418,91.351,48.1393]
[1643401785115,1.75252592,91.418,91.351,48.1393]
[1643401785315,1.50252592,91.416,91.351,48.1393]
[1643401785512,1.50252592,91.416,91.34,15.81]
[1643401785513,16.426,91.41,91.34,15.81]
[1643401785714,1.50252592,91.398,91.27,197.6]
[1643401785914,1.50252592,91.382,91.29,15.81]
[1643401786117,43.78023372,91.381,91.29,15.81]
[1643401786316,1.50252592,91.378,91.29,15.81]
[1643401786718,1.50252592,91.375,91.29,15.81]
[1643401786920,1.50252592,91.374,91.29,15.81]
[1643401787124,16.434,91.36,91.29,15.81]
[1643401787319,0.25,91.359,91.29,15.81]
[1643401787522,1.50252592,91.357,91.29,15.81]
[1643401788021,0.25,91.356,91.29,15.81]
[1643401788220,44.80553095,91.349,91.29,15.81]
[1643401788425,44.80553095,91.349,91.26,15.81]
[1643401788623,1.50252592,91.343,91.26,15.81]
[1643401788823,0.25,91.342,91.26,15.81]
[1643401789420,1.50252592,91.341,91.26,15.81]
[1643401789624,1.50252592,91.34,91.26,15.81]
[1643401790021,16.44,91.33,91.26,15.81]
[1643401790450,0.25,91.329,91.26,15.81]
[1643401790644,1.50252592,91.335,91.26,15.81]
[1643401790846,1.50252592,91.339,91.261,0.25]
[1643401791048,16.442,91.32,91.26,15.81]
[1643401791246,41.90484591,91.319,91.24,15.81]
[1643401791447,44.86153733,91.319,91.24,15.81]
[1643401791648,1.50252592,91.317,91.24,15.81]
[1643401791845,1.50252592,91.315,91.24,15.81]
[1643401792045,0.25,91.316,91.24,15.81]
[1643401792248,0.25,91.316,91.241,0.25]
[1643401793053,16.446,91.3,91.241,0.25]
[1643401794747,16.446,91.3,91.24,15.81]
[1643401796348,0.25,91.299,91.24,15.81]
[1643401796554,16.446,91.3,91.24,15.81]
[1643401797152,16.696,91.3,91.24,16.06]
[1643401798558,16.696,91.3,91.24,15.81]
[1643401798754,16.696,91.3,91.225,24.8636]
[1643401801057,0.25,91.3,91.225,24.8636]
[1643401801259,41.90484591,91.319,91.225,24.8636]
[1643401801459,6.0,91.309,91.225,24.8636]
[1643401802061,49.20803187,91.289,91.225,24.8636]
[1643401803561,16.449,91.28,91.225,24.8636]
[1643401803761,16.699,91.28,91.225,24.8636]
[1643401804562,49.20803187,91.289,91.225,24.8636]
[1643401804862,46.002,91.326,91.235,6.0]
[1643401805064,6.0,91.316,91.24,15.81]
[1643401805262,6.0,91.316,91.24,16.06]
[1643401805666,35.93588725,91.315,91.24,16.06]
[1643401805863,16.443,91.31,91.241,2.95669142]
[1643401806266,16.693,91.31,91.241,2.95669142]
[1643401807063,16.693,91.31,91.24,16.06]
[1643401808467,16.693,91.31,91.24,0.25]
[1643401808867,16.693,91.31,91.22,16.06]
[1643401810875,16.693,91.31,91.226,2.95669142]
[1643401811071,16.693,91.31,91.24,15.81]
[1643401811271,16.693,91.31,91.24,16.06]
[1643401811672,6.0,91.3,91.24,15.81]
[1643401811874,16.451,91.29,91.205,24.0324]
[1643401812074,16.451,91.29,91.215,6.0]
[1643401812274,16.451,91.29,91.22,15.81]
[1643401813074,16.451,91.29,91.22,16.06]
[1643401813673,16.701,91.29,91.22,16.06]
[1643401815174,16.701,91.29,91.22,15.81]
[1643401815578,16.453,91.27,91.215,6.0]
[1643401815776,16.703,91.27,91.216,6.0]
[1643401815978,16.453,91.27,91.215,6.0]
[1643401816174,16.703,91.27,91.215,6.0]
[1643401816500,16.703,91.27,91.21,6.0]
[1643401816878,16.703,91.27,91.211,6.0]
[1643401817278,0.25,91.27,91.211,6.0]
[1643401817479,40.92506239,91.279,91.211,6.0]
[1643401817680,39.42253647,91.279,91.211,6.0]
[1643401818084,1.50252592,91.276,91.211,6.0]
[1643401818281,16.45,91.27,91.211,6.0]
[1643401818782,16.7,91.27,91.201,48.0319]
[1643401820586,16.7,91.27,91.2,15.81]
[1643401820787,16.7,91.27,91.175,1.50981917]
[1643401820997,6.0,91.26,91.163,1.50981917]
[1643401821193,16.461,91.24,91.15,15.81]
[1643401821392,46.91574883,91.239,91.15,15.81]
[1643401821791,1.50252592,91.233,91.15,15.81]
[1643401821987,1.50252592,91.234,91.151,23.0343]
[1643401822390,1.50252592,91.233,91.151,23.0343]
[1643401822989,16.462,91.22,91.151,23.0343]
[1643401823391,16.462,91.22,91.15,15.81]
[1643401823392,16.712,91.22,91.15,15.81]
[1643401823893,16.712,91.22,91.126,2.95669142]
[1643401824119,16.468,91.2,91.136,6.0]
[1643401824313,16.468,91.2,91.12,15.81]
[1643401824314,46.51953346,91.199,91.12,15.81]
[1643401824733,2.95669142,91.198,91.12,15.81]
[1643401824914,2.95669142,91.198,91.094,1.50981917]
[1643401825315,16.468,91.18,91.09,15.81]